fUSD/lending_fUSD_20260530
["ID","MTS","AMOUNT","RATE_DAILY","PERIOD"]
[423420348,1780101075000,-500.0,0.00010426,2]
[423420340,1780101075000,-1010.68397,0.0001037,2]
[423420351,1780101075000,-166.66,0.00010464,2]
[423420431,1780101076000,-500.0,0.00010958,7]
[423420423,1780101076000,-98303.0871659,0.00010941,2]
[423420427,1780101076000,-500.0,0.00010958,3]
[423420421,1780101076000,-162.4478779,0.00010941,2]
[423420425,1780101076000,-350.0,0.00010944,2]
[423420433,1780101076000,-500.0,0.00010958,9]
[423420429,1780101076000,-500.0,0.00010958,5]
[423420426,1780101076000,-500.0,0.00010958,2]
[423420428,1780101076000,-500.0,0.00010958,4]
[423420424,1780101076000,-348.9349285,0.00010941,2]
[423420432,1780101076000,-500.0,0.00010958,8]
[423420430,1780101076000,-500.0,0.00010958,6]
[423420441,1780101076000,-200.0,0.00010959,2]
[423420437,1780101076000,-500.0,0.00010958,3]
[423420439,1780101076000,-200.0,0.00010959,2]
[423420438,1780101076000,-200.0,0.00010959,2]
[423420446,1780101076000,-200.0,0.00010959,2]
[423420435,1780101076000,-500.0,0.00010958,2]
[423420442,1780101076000,-200.0,0.00010959,2]
[423420440,1780101076000,-200.0,0.00010959,2]
[423420436,1780101076000,-500.0,0.00010958,2]
[423420444,1780101076000,-150.0,0.00010959,2]
[423420445,1780101076000,-150.0,0.00010959,2]
[423420443,1780101076000,-186.45,0.00010959,2]
[423420422,1780101076000,-53725.2257644,0.00010941,2]
[423420448,1780101076000,-200.0,0.00010959,2]
[423420434,1780101076000,-591.45,0.00010958,10]
[423420416,1780101076000,-350.0,0.00010852,2]
[423420404,1780101076000,-1175.497728,0.000107,2]
[423420414,1780101076000,-4000.0,0.00010779,2]
[423420458,1780101076000,-200.0,0.00010959,2]
[423420397,1780101076000,-156.604429,0.000107,2]
[423420391,1780101076000,-171.300144,0.000107,2]
[423420394,1780101076000,-156.604429,0.000107,2]
[423420396,1780101076000,-156.604429,0.000107,2]
[423420395,1780101076000,-156.604429,0.000107,2]
[423420393,1780101076000,-156.604429,0.000107,2]
[423420392,1780101076000,-1779590.41438927,0.000107,2]
[423420401,1780101076000,-1236.96640822,0.000107,2]
[423420403,1780101076000,-1175.497728,0.000107,2]
[423420399,1780101076000,-156.604429,0.000107,2]
[423420402,1780101076000,-1175.497728,0.000107,2]
[423420400,1780101076000,-156.604423,0.000107,2]
[423420398,1780101076000,-156.604429,0.000107,2]
[423420405,1780101076000,-1175.497728,0.000107,2]
[423420407,1780101076000,-1175.497728,0.000107,2]
[423420406,1780101076000,-1175.497728,0.000107,2]
[423420409,1780101076000,-1175.497733,0.000107,2]
[423420420,1780101076000,-56654.9584502,0.0001094,2]
[423420419,1780101076000,-28550.31519033,0.000109,2]
[423420408,1780101076000,-1175.497728,0.000107,2]
[423420410,1780101076000,-1771.41375321,0.000107,2]
[423420418,1780101076000,-28550.31519033,0.000109,2]
[423420413,1780101076000,-151.0,0.000107,2]
[423420415,1780101076000,-500.0,0.00010843,2]
[423420411,1780101076000,-443.32963917,0.000107,2]
[423420412,1780101076000,-151.0,0.000107,2]
[423420417,1780101076000,-1264.12,0.000109,2]
[423420447,1780101076000,-200.0,0.00010959,2]
[423420497,1780101076000,-300.0,0.00011098,2]
[423420449,1780101076000,-200.0,0.00010959,2]
[423420478,1780101076000,-200.0,0.00010959,2]
[423420484,1780101076000,-200.0,0.00010959,2]
[423420488,1780101076000,-28550.31519033,0.00010999,2]
[423420491,1780101076000,-4000.0,0.0001103,2]
[423420485,1780101076000,-200.0,0.00010959,2]
[423420489,1780101076000,-8972.30603464,0.00011,2]
[423420487,1780101076000,-281.775012,0.00010959,2]
[423420492,1780101076000,-400.0,0.00011043,2]
[423420486,1780101076000,-200.0,0.00010959,2]
[423420494,1780101076000,-170.948439,0.00011096,2]
[423420490,1780101076000,-823.43,0.00011,2]
[423420493,1780101076000,-350.0,0.00011058,2]
[423420498,1780101076000,-310.00034415,0.00011098,2]
[423420503,1780101076000,-300.0,0.00011098,2]
[423420501,1780101076000,-300.0,0.00011098,2]
[423420502,1780101076000,-300.0,0.00011098,2]
[423420495,1780101076000,-170.948439,0.00011096,2]
[423420507,1780101076000,-53203.77590313,0.00011099,2]
[423420500,1780101076000,-300.0,0.00011098,2]
[423420496,1780101076000,-300.0,0.00011098,2]
[423420505,1780101076000,-53203.77590313,0.00011099,2]
[423420504,1780101076000,-53203.77590313,0.00011099,2]
[423420499,1780101076000,-300.0,0.00011098,2]
[423420508,1780101076000,-88751.44334483,0.00011099,2]
[423420510,1780101076000,-500.0,0.00011117,2]
[423420450,1780101076000,-200.0,0.00010959,2]
[423420509,1780101076000,-151.0,0.00011099,2]
[423420481,1780101076000,-200.0,0.00010959,2]
[423420480,1780101076000,-200.0,0.00010959,2]
[423420506,1780101076000,-53203.77590313,0.00011099,2]
[423420479,1780101076000,-200.0,0.00010959,2]
[423420451,1780101076000,-200.0,0.00010959,2]
[423420482,1780101076000,-200.0,0.00010959,2]
[423420452,1780101076000,-200.0,0.00010959,2]
[423420455,1780101076000,-200.0,0.00010959,2]
[423420456,1780101076000,-200.0,0.00010959,2]
[423420453,1780101076000,-200.0,0.00010959,2]
[423420457,1780101076000,-200.0,0.00010959,2]
[423420454,1780101076000,-200.0,0.00010959,2]
[423420460,1780101076000,-200.0,0.00010959,2]
[423420463,1780101076000,-200.0,0.00010959,2]
[423420464,1780101076000,-200.0,0.00010959,2]
[423420462,1780101076000,-200.0,0.00010959,2]
[423420461,1780101076000,-200.0,0.00010959,2]
[423420471,1780101076000,-200.0,0.00010959,2]
[423420459,1780101076000,-200.0,0.00010959,2]
[423420466,1780101076000,-200.0,0.00010959,2]
[423420477,1780101076000,-200.0,0.00010959,2]
[423420474,1780101076000,-200.0,0.00010959,2]
[423420472,1780101076000,-200.0,0.00010959,2]
[423420483,1780101076000,-200.0,0.00010959,2]
[423420476,1780101076000,-200.0,0.00010959,2]
[423420473,1780101076000,-200.0,0.00010959,2]
[423420475,1780101076000,-200.0,0.00010959,2]
[423420470,1780101076000,-200.0,0.00010959,2]
[423420465,1780101076000,-200.0,0.00010959,2]
[423420467,1780101076000,-200.0,0.00010959,2]
[423420468,1780101076000,-200.0,0.00010959,2]
[423420469,1780101076000,-200.0,0.00010959,2]
[423420549,1780101077000,-7946.89507538,0.00012514,2]
[423420553,1780101077000,-162.72,0.00012717,2]
[423420545,1780101077000,-6111.0,0.000125,2]
[423420550,1780101077000,-10000.0,0.00012515,2]
[423420546,1780101077000,-311.55362319,0.000125,2]
[423420541,1780101077000,-150.30096206,0.00012329,2]
[423420544,1780101077000,-15000.0,0.000125,2]
[423420548,1780101077000,-2614.66182705,0.00012509,2]
[423420551,1780101077000,-3372.20586276,0.00012554,2]
[423420542,1780101077000,-249.34318072,0.00012329,2]
[423420554,1780101077000,-6066.0,0.00012751,2]
[423420547,1780101077000,-9837.90357303,0.000125,2]
[423420552,1780101077000,-162.7,0.00012583,2]
[423420564,1780101077000,-150.0,0.0001295,2]
[423420557,1780101077000,-300.0,0.00012806,2]
[423420555,1780101077000,-7262.9813357,0.00012801,2]
[423420559,1780101077000,-1691.0172044,0.00012815,2]
[423420561,1780101077000,-283.66,0.00012869,10]
[423420577,1780101077000,-24335.30063223,0.00013,5]
[423420556,1780101077000,-300.0,0.00012806,2]
[423420563,1780101077000,-283.65,0.00012869,19]
[423420562,1780101077000,-283.65,0.00012869,26]
[423420560,1780101077000,-283.66,0.00012869,20]
[423420566,1780101077000,-150.0,0.0001295,2]
[423420565,1780101077000,-150.0,0.0001295,2]
[423420576,1780101077000,-13959.93260184,0.00013,15]
[423420543,1780101077000,-3010.94029728,0.000125,2]
[423420558,1780101077000,-373618.963834,0.00012807,2]
[423420539,1780101077000,-2000.0,0.00012329,2]
[423420511,1780101077000,-350.0,0.00011172,2]
[423420538,1780101077000,-3682.87,0.00012329,2]
[423420567,1780101077000,-150.0,0.0001295,2]
[423420512,1780101077000,-162.7,0.00011185,2]
[423420514,1780101077000,-866.5,0.00011227,2]
[423420516,1780101077000,-278.59,0.00011233,2]
[423420515,1780101077000,-841.52,0.00011231,2]
[423420517,1780101077000,-150.99,0.00011281,2]
[423420513,1780101077000,-350.0,0.00011187,2]
[423420526,1780101077000,-2323.65,0.00011507,2]
[423420518,1780101077000,-299.99,0.00011281,2]
[423420524,1780101077000,-571.96129367,0.00011391,2]
[423420522,1780101077000,-350.0,0.00011301,2]
[423420525,1780101077000,-2862.47183378,0.000114,2]
[423420528,1780101077000,-500.0,0.00011796,2]
[423420519,1780101077000,-9999.99,0.00011281,2]
[423420523,1780101077000,-2000.0,0.00011301,2]
[423420520,1780101077000,-9999.99,0.00011281,2]
[423420521,1780101077000,-300.0,0.00011297,2]
[423420527,1780101077000,-410.12701625,0.00011731,2]
[423420530,1780101077000,-1264.12,0.0001199,2]
[423420540,1780101077000,-150.30096206,0.00012329,2]
[423420529,1780101077000,-162.7,0.00011884,2]
[423420533,1780101077000,-2189.4504754,0.000121,30]
[423420532,1780101077000,-300.0,0.00012066,2]
[423420534,1780101077000,-841.52,0.00012252,2]
[423420536,1780101077000,-300.0,0.00012271,2]
[423420531,1780101077000,-170.948439,0.00012064,2]
[423420537,1780101077000,-438.19650333,0.00012271,2]
[423420535,1780101077000,-300.0,0.00012271,2]
[423420568,1780101077000,-150.0,0.0001295,2]
[423420621,1780101077000,-500.0,0.00013698,2]
[423420575,1780101077000,-5681.0710869,0.00013,2]
[423420604,1780101077000,-335.32356406,0.00013698,2]
[423420607,1780101077000,-500.0,0.00013698,2]
[423420609,1780101077000,-500.0,0.00013698,2]
[423420605,1780101077000,-514.42577006,0.00013698,2]
[423420608,1780101077000,-500.0,0.00013698,2]
[423420612,1780101077000,-500.0,0.00013698,2]
[423420606,1780101077000,-500.0,0.00013698,2]
[423420614,1780101077000,-500.0,0.00013698,2]
[423420615,1780101077000,-500.0,0.00013698,2]
[423420613,1780101077000,-500.0,0.00013698,2]
[423420611,1780101077000,-500.0,0.00013698,2]
[423420610,1780101077000,-475.54964142,0.00013698,2]
[423420598,1780101077000,-500.0,0.00013698,2]
[423420616,1780101077000,-500.0,0.00013698,2]
[423420618,1780101077000,-500.0,0.00013698,2]
[423420620,1780101077000,-500.0,0.00013698,2]
[423420619,1780101077000,-500.0,0.00013698,2]
[423420627,1780101077000,-500.0,0.00013698,2]
[423420617,1780101077000,-500.0,0.00013698,2]
[423420624,1780101077000,-500.0,0.00013698,2]
[423420623,1780101077000,-500.0,0.00013698,2]
[423420625,1780101077000,-500.0,0.00013698,2]
[423420622,1780101077000,-500.0,0.00013698,2]
[423420626,1780101077000,-500.0,0.00013698,2]
[423420629,1780101077000,-500.0,0.00013698,2]
[423420631,1780101077000,-500.0,0.00013698,2]
[423420628,1780101077000,-500.0,0.00013698,2]
[423420597,1780101077000,-500.0,0.00013698,2]
[423420630,1780101077000,-500.0,0.00013698,2]
[423420596,1780101077000,-500.0,0.00013698,2]
[423420600,1780101077000,-500.0,0.00013698,2]
[423420570,1780101077000,-56654.9584502,0.00012965,2]
[423420571,1780101077000,-162.4478779,0.00012965,2]
[423420572,1780101077000,-53725.2257644,0.00012965,2]
[423420573,1780101077000,-98303.0871659,0.00012965,2]
[423420574,1780101077000,-348.9349285,0.00012965,2]
[423420579,1780101077000,-1272.0,0.0001304,2]
[423420589,1780101077000,-300.0,0.00013697,2]
[423420584,1780101077000,-3348.6,0.00013608,2]
[423420583,1780101077000,-500.0,0.00013166,2]
[423420590,1780101077000,-300.0,0.00013697,2]
[423420588,1780101077000,-170.948439,0.00013695,2]
[423420580,1780101077000,-1225.0,0.0001304,2]
[423420586,1780101077000,-166406.3615866,0.00013637,2]
[423420569,1780101077000,-150.0,0.0001295,2]
[423420581,1780101077000,-2993.07851107,0.0001305,2]
[423420578,1780101077000,-525.0,0.0001304,2]
[423420603,1780101077000,-500.0,0.00013698,2]
[423420593,1780101077000,-500.0,0.00013698,2]
[423420591,1780101077000,-500.0,0.00013698,2]
[423420595,1780101077000,-500.0,0.00013698,2]
[423420599,1780101077000,-500.0,0.00013698,2]
[423420594,1780101077000,-500.0,0.00013698,2]
[423420582,1780101077000,-1264.12,0.0001308,2]
[423420602,1780101077000,-500.0,0.00013698,2]
[423420601,1780101077000,-500.0,0.00013698,2]
[423420587,1780101077000,-4953.0225207,0.00013637,2]
[423420592,1780101077000,-500.0,0.00013698,2]
[423420585,1780101077000,-300.0,0.00013636,2]
[423420658,1780101078000,-500.0,0.00013698,2]
[423420668,1780101078000,-500.0,0.00013698,2]
[423420661,1780101078000,-500.0,0.00013698,2]
[423420664,1780101078000,-500.0,0.00013698,2]
[423420655,1780101078000,-500.0,0.00013698,2]
[423420672,1780101078000,-500.0,0.00013698,2]
[423420673,1780101078000,-500.0,0.00013698,2]
[423420676,1780101078000,-500.0,0.00013698,2]
[423420667,1780101078000,-500.0,0.00013698,2]
[423420671,1780101078000,-500.0,0.00013698,2]
[423420665,1780101078000,-500.0,0.00013698,2]
[423420682,1780101078000,-500.0,0.00013698,2]
[423420674,1780101078000,-500.0,0.00013698,2]
[423420669,1780101078000,-500.0,0.00013698,2]
[423420670,1780101078000,-500.0,0.00013698,2]
[423420675,1780101078000,-500.0,0.00013698,2]
[423420666,1780101078000,-500.0,0.00013698,2]
[423420689,1780101078000,-500.0,0.00013698,2]
[423420678,1780101078000,-511.17165135,0.00013698,2]
[423420679,1780101078000,-500.0,0.00013698,2]
[423420681,1780101078000,-500.0,0.00013698,2]
[423420691,1780101078000,-500.0,0.00013698,2]
[423420685,1780101078000,-500.0,0.00013698,2]
[423420688,1780101078000,-500.0,0.00013698,2]
[423420690,1780101078000,-500.0,0.00013698,2]
[423420677,1780101078000,-635.65,0.00013698,2]
[423420657,1780101078000,-500.0,0.00013698,2]
[423420654,1780101078000,-500.0,0.00013698,2]
[423420662,1780101078000,-500.0,0.00013698,2]
[423420687,1780101078000,-500.0,0.00013698,2]
[423420641,1780101078000,-195.16910814,0.00013698,2]
[423420640,1780101078000,-513.91009817,0.00013698,2]
[423420633,1780101078000,-500.0,0.00013698,2]
[423420632,1780101078000,-500.0,0.00013698,2]
[423420638,1780101078000,-500.0,0.00013698,2]
[423420639,1780101078000,-502.23541788,0.00013698,2]
[423420635,1780101078000,-500.0,0.00013698,2]
[423420634,1780101078000,-247.43424159,0.00013698,2]
[423420637,1780101078000,-500.0,0.00013698,2]
[423420636,1780101078000,-219.06863491,0.00013698,2]
[423420648,1780101078000,-500.0,0.00013698,2]
[423420646,1780101078000,-500.0,0.00013698,2]
[423420642,1780101078000,-500.0,0.00013698,2]
[423420653,1780101078000,-500.0,0.00013698,2]
[423420643,1780101078000,-500.0,0.00013698,2]
[423420647,1780101078000,-500.0,0.00013698,2]
[423420645,1780101078000,-500.0,0.00013698,2]
[423420644,1780101078000,-500.0,0.00013698,2]
[423420649,1780101078000,-500.0,0.00013698,2]
[423420652,1780101078000,-500.0,0.00013698,2]
[423420650,1780101078000,-500.0,0.00013698,2]
[423420660,1780101078000,-500.0,0.00013698,2]
[423420663,1780101078000,-500.0,0.00013698,2]
[423420659,1780101078000,-500.0,0.00013698,2]
[423420656,1780101078000,-500.0,0.00013698,2]
[423420651,1780101078000,-476.56174821,0.00013698,2]
[423420686,1780101078000,-500.0,0.00013698,2]
[423420683,1780101078000,-482.9684046,0.00013698,2]
[423420717,1780101078000,-500.0,0.00013698,2]
[423420716,1780101078000,-500.0,0.00013698,2]
[423420721,1780101078000,-500.0,0.00013698,2]
[423420724,1780101078000,-500.0,0.00013698,2]
[423420726,1780101078000,-500.0,0.00013698,2]
[423420727,1780101078000,-500.0,0.00013698,2]
[423420725,1780101078000,-500.0,0.00013698,2]
[423420733,1780101078000,-500.0,0.00013698,2]
[423420730,1780101078000,-500.0,0.00013698,2]
[423420728,1780101078000,-500.0,0.00013698,2]
[423420729,1780101078000,-500.0,0.00013698,2]
[423420731,1780101078000,-500.0,0.00013698,2]
[423420740,1780101078000,-500.0,0.00013698,2]
[423420741,1780101078000,-500.0,0.00013698,2]
[423420738,1780101078000,-500.0,0.00013698,2]
[423420734,1780101078000,-586.75553055,0.00013698,2]
[423420736,1780101078000,-500.0,0.00013698,2]
[423420737,1780101078000,-500.0,0.00013698,2]
[423420744,1780101078000,-500.0,0.00013698,2]
[423420743,1780101078000,-500.0,0.00013698,2]
[423420735,1780101078000,-500.0,0.00013698,2]
[423420739,1780101078000,-500.0,0.00013698,2]
[423420742,1780101078000,-500.0,0.00013698,2]
[423420745,1780101078000,-480.53482439,0.00013698,2]
[423420684,1780101078000,-500.0,0.00013698,2]
[423420719,1780101078000,-500.0,0.00013698,2]
[423420720,1780101078000,-500.0,0.00013698,2]
[423420732,1780101078000,-500.0,0.00013698,2]
[423420723,1780101078000,-500.0,0.00013698,2]
[423420680,1780101078000,-500.0,0.00013698,2]
[423420722,1780101078000,-500.0,0.00013698,2]
[423420692,1780101078000,-500.0,0.00013698,2]
[423420695,1780101078000,-500.0,0.00013698,2]
[423420694,1780101078000,-500.0,0.00013698,2]
[423420696,1780101078000,-500.0,0.00013698,2]
[423420702,1780101078000,-500.0,0.00013698,2]
[423420700,1780101078000,-500.0,0.00013698,2]
[423420698,1780101078000,-500.0,0.00013698,2]
[423420703,1780101078000,-500.0,0.00013698,2]
[423420699,1780101078000,-500.0,0.00013698,2]
[423420693,1780101078000,-500.0,0.00013698,2]
[423420701,1780101078000,-500.0,0.00013698,2]
[423420697,1780101078000,-500.0,0.00013698,2]
[423420708,1780101078000,-500.0,0.00013698,2]
[423420705,1780101078000,-500.0,0.00013698,2]
[423420707,1780101078000,-500.0,0.00013698,2]
[423420706,1780101078000,-500.0,0.00013698,2]
[423420710,1780101078000,-500.0,0.00013698,2]
[423420704,1780101078000,-159.464,0.00013698,2]
[423420709,1780101078000,-500.0,0.00013698,2]
[423420711,1780101078000,-500.0,0.00013698,2]
[423420713,1780101078000,-500.0,0.00013698,2]
[423420714,1780101078000,-500.0,0.00013698,2]
[423420715,1780101078000,-500.0,0.00013698,2]
[423420712,1780101078000,-500.0,0.00013698,2]
[423420718,1780101078000,-500.0,0.00013698,2]
[423420781,1780101079000,-500.0,0.00013698,2]
[423420785,1780101079000,-368.3251148,0.00013698,2]
[423420777,1780101079000,-500.0,0.00013698,2]
[423420788,1780101079000,-500.0,0.00013698,2]
[423420790,1780101079000,-500.0,0.00013698,2]
[423420791,1780101079000,-500.0,0.00013698,2]
[423420775,1780101079000,-500.0,0.00013698,2]
[423420783,1780101079000,-500.0,0.00013698,2]
[423420782,1780101079000,-500.0,0.00013698,2]
[423420769,1780101079000,-594.64,0.00013698,2]
[423420787,1780101079000,-500.0,0.00013698,2]
[423420784,1780101079000,-500.0,0.00013698,2]
[423420789,1780101079000,-500.0,0.00013698,2]
[423420801,1780101079000,-1000.0,0.00013699,2]
[423420794,1780101079000,-500.0,0.00013698,2]
[423420792,1780101079000,-500.0,0.00013698,2]
[423420796,1780101079000,-500.0,0.00013698,2]
[423420793,1780101079000,-500.0,0.00013698,2]
[423420805,1780101079000,-617.382173,0.00013699,2]
[423420795,1780101079000,-500.0,0.00013698,2]
[423420804,1780101079000,-617.382173,0.00013699,2]
[423420803,1780101079000,-617.382173,0.00013699,2]
[423420797,1780101079000,-500.0,0.00013698,2]
[423420798,1780101079000,-500.0,0.00013698,2]
[423420800,1780101079000,-325.82433604,0.00013698,2]
[423420802,1780101079000,-200.0,0.00013699,2]
[423420778,1780101079000,-500.0,0.00013698,2]
[423420786,1780101079000,-500.0,0.00013698,2]
[423420776,1780101079000,-500.0,0.00013698,2]
[423420755,1780101079000,-594.64,0.00013698,2]
[423420779,1780101079000,-500.0,0.00013698,2]
[423420799,1780101079000,-500.0,0.00013698,2]
[423420747,1780101079000,-594.64,0.00013698,2]
[423420752,1780101079000,-594.64,0.00013698,2]
[423420750,1780101079000,-594.64,0.00013698,2]
[423420751,1780101079000,-594.64,0.00013698,2]
[423420746,1780101079000,-565.72873569,0.00013698,2]
[423420748,1780101079000,-594.64,0.00013698,2]
[423420756,1780101079000,-594.64,0.00013698,2]
[423420753,1780101079000,-594.64,0.00013698,2]
[423420754,1780101079000,-594.64,0.00013698,2]
[423420759,1780101079000,-594.64,0.00013698,2]
[423420764,1780101079000,-594.64,0.00013698,2]
[423420761,1780101079000,-594.64,0.00013698,2]
[423420768,1780101079000,-594.64,0.00013698,2]
[423420757,1780101079000,-594.64,0.00013698,2]
[423420760,1780101079000,-594.64,0.00013698,2]
[423420766,1780101079000,-594.64,0.00013698,2]
[423420758,1780101079000,-594.64,0.00013698,2]
[423420763,1780101079000,-594.64,0.00013698,2]
[423420762,1780101079000,-594.64,0.00013698,2]
[423420767,1780101079000,-594.64,0.00013698,2]
[423420765,1780101079000,-594.64,0.00013698,2]
[423420773,1780101079000,-500.0,0.00013698,2]
[423420780,1780101079000,-500.0,0.00013698,2]
[423420772,1780101079000,-500.0,0.00013698,2]
[423420774,1780101079000,-500.0,0.00013698,2]
[423420770,1780101079000,-594.73549121,0.00013698,2]
[423420771,1780101079000,-500.0,0.00013698,2]
[423420807,1780101079000,-617.382173,0.00013699,2]
[423420749,1780101079000,-594.64,0.00013698,2]
[423420818,1780101079000,-617.382173,0.00013699,2]
[423420840,1780101079000,-193.34322,0.00013699,2]
[423420837,1780101079000,-193.34322,0.00013699,2]
[423420839,1780101079000,-193.34322,0.00013699,2]
[423420853,1780101079000,-155.18893265,0.00013699,2]
[423420845,1780101079000,-166.66,0.00013699,2]
[423420854,1780101079000,-666.8,0.000137,2]
[423420846,1780101079000,-151.0,0.00013699,2]
[423420852,1780101079000,-154.0,0.00013699,2]
[423420844,1780101079000,-2500.0,0.00013699,2]
[423420849,1780101079000,-151.0,0.00013699,2]
[423420847,1780101079000,-151.0,0.00013699,2]
[423420850,1780101079000,-237.491094,0.00013699,2]
[423420851,1780101079000,-165.28,0.00013699,2]
[423420855,1780101079000,-500.0,0.00013726,2]
[423420848,1780101079000,-151.0,0.00013699,2]
[423420856,1780101079000,-166.66,0.00013836,2]
[423420858,1780101079000,-1335.58,0.000139,2]
[423420857,1780101079000,-152.26,0.000139,2]
[423420859,1780101079000,-1801.24,0.000139,2]
[423420865,1780101079000,-250.0,0.00014,2]
[423420866,1780101079000,-2000.0,0.00014,2]
[423420864,1780101079000,-530.30207749,0.00014,2]
[423420863,1780101079000,-190.72078798,0.00014,20]
[423420867,1780101079000,-2000.0,0.00014,2]
[423420860,1780101079000,-532.88,0.00013901,2]
[423420861,1780101079000,-166.66,0.00013973,2]
[423420817,1780101079000,-617.382173,0.00013699,2]
[423420835,1780101079000,-193.34322,0.00013699,2]
[423420834,1780101079000,-193.34322,0.00013699,2]
[423420862,1780101079000,-11733.69196958,0.0001399,2]
[423420838,1780101079000,-193.34322,0.00013699,2]
[423420836,1780101079000,-193.34322,0.00013699,2]
[423420809,1780101079000,-617.382173,0.00013699,2]
[423420806,1780101079000,-617.382173,0.00013699,2]
[423420808,1780101079000,-617.382173,0.00013699,2]
[423420813,1780101079000,-617.382173,0.00013699,2]
[423420811,1780101079000,-617.382173,0.00013699,2]
[423420816,1780101079000,-617.382173,0.00013699,2]
[423420812,1780101079000,-617.382173,0.00013699,2]
[423420815,1780101079000,-617.382173,0.00013699,2]
[423420814,1780101079000,-617.382173,0.00013699,2]
[423420819,1780101079000,-617.382173,0.00013699,2]
[423420820,1780101079000,-617.382173,0.00013699,2]
[423420825,1780101079000,-193.34322,0.00013699,2]
[423420824,1780101079000,-193.34322,0.00013699,2]
[423420810,1780101079000,-617.382173,0.00013699,2]
[423420821,1780101079000,-617.382173,0.00013699,2]
[423420823,1780101079000,-151.0,0.00013699,2]
[423420842,1780101079000,-193.34322,0.00013699,2]
[423420841,1780101079000,-193.34322,0.00013699,2]
[423420832,1780101079000,-193.34322,0.00013699,2]
[423420831,1780101079000,-193.34322,0.00013699,2]
[423420833,1780101079000,-193.34322,0.00013699,2]
[423420829,1780101079000,-193.34322,0.00013699,2]
[423420822,1780101079000,-617.382178,0.00013699,2]
[423420830,1780101079000,-193.34322,0.00013699,2]
[423420826,1780101079000,-193.34322,0.00013699,2]
[423420843,1780101079000,-193.34322,0.00013699,2]
[423420827,1780101079000,-193.34322,0.00013699,2]
[423420828,1780101079000,-193.34322,0.00013699,2]
[423420908,1780101080000,-2000.0,0.00014985,2]
[423420898,1780101080000,-165.0,0.000149,2]
[423420896,1780101080000,-25000.0,0.000149,3]
[423420897,1780101080000,-25000.0,0.000149,3]
[423420900,1780101080000,-150.0,0.00014925,2]
[423420904,1780101080000,-504.66,0.00014985,2]
[423420901,1780101080000,-705.95,0.00014985,2]
[423420895,1780101080000,-386.35330165,0.000149,3]
[423420899,1780101080000,-25000.0,0.000149,3]
[423420902,1780101080000,-2000.0,0.00014985,2]
[423420893,1780101080000,-1210.18563421,0.000148,2]
[423420915,1780101080000,-2000.0,0.00014985,2]
[423420906,1780101080000,-268.75,0.00014985,2]
[423420910,1780101080000,-2000.0,0.00014985,2]
[423420909,1780101080000,-2000.0,0.00014985,2]
[423420907,1780101080000,-410.38,0.00014985,2]
[423420914,1780101080000,-2000.0,0.00014985,2]
[423420916,1780101080000,-2000.0,0.00014985,2]
[423420912,1780101080000,-2000.0,0.00014985,2]
[423420917,1780101080000,-1978.72,0.00014985,2]